Cogmind - Beta 17 @@@ ROGUE MODE // 2026.08.12 @ 18:47:46 Player: Marc Result: Self-destructed Performance ------------- Evolutions (2) 1000 Regions Visited (3) 600 Robots Destroyed (36) 180 Value Destroyed (1225) 1225 Prototype IDs (1) 20 Alien Tech Used (0) 0 Bonus (0) 0 TOTAL SCORE: 3025 Bonus ------- None Cogmind --------- Core Integrity 428/550 Matter 7/300 Energy 140/140 System Corruption 0% Temperature Cool (0) Movement Core (400) Ox7 Location -8/Materials Parts ------- > --- POWER (2) -------- Light Deuterium Engine > --- PROPULSION (3) --- (None) > --- UTILITY (4) ------ Small Storage Unit Sensor Array Signal Interpreter Layered Light Armor Plating > --- WEAPON (2) ------- Minigun Improved Grenade Launcher > --- INVENTORY (8) ---- Light Deuterium Engine Armored Wheel Medium Matter Pod (0) Advanced Visual Processing Unit Layered Light Armor Plating Layered Light Armor Plating Layered Light Armor Plating Mini Grenade Launcher Peak State ------------ > --- POWER ------------ Light Deuterium Engine Light Deuterium Engine > --- PROPULSION ------- Improved Treads Armored Wheel Armored Wheel > --- UTILITY ---------- Small Storage Unit Signal Interpreter Layered Light Armor Plating Layered Light Armor Plating > --- WEAPON ----------- Autogun Mini Grenade Launcher > --- INVENTORY -------- Light Deuterium Engine Light Treads Armored Wheel Medium Matter Pod Advanced Visual Processing Unit Sensor Array [Rating: 27] Favorites ----------- Power Ion Engine Engine Ion Engine Propulsion Armored Wheel Treads Improved Treads Leg Aluminum Leg Wheel Armored Wheel Utility Small Storage Unit Device Sensor Array Storage Small Storage Unit Processor Signal Interpreter Protection Layered Light Armor Plating Weapon Autogun Energy Gun Small Laser Ballistic Gun Autogun Launcher Mini Grenade Launcher Build | -11 -10 -9 -8 ------- Run | Yrd Mat Mat Mat Slots Evolved 4 | . . 2 2 Power 1 | . . 1 . Propulsion 1 | . . . 1 Utility 2 | . . 1 1 Weapon . | . . . . Parts Attached 27 | . 4 15 8 Power 6 | . 1 4 1 Engine 6 | . 1 4 1 Core . | . . . . Reactor . | . . . . Propulsion 9 | . 2 7 . Treads 3 | . . 3 . Leg 2 | . 2 . . Wheel 4 | . . 4 . Hover . | . . . . Flight . | . . . . Utility 7 | . 1 2 4 Device 1 | . . . 1 Storage 2 | . 1 1 . Processor 1 | . . 1 . Hackware . | . . . . Protection 3 | . . . 3 Artifact . | . . . . Weapon 5 | . . 2 3 Energy Gun 1 | . . . 1 Energy Cannon . | . . . . Ballistic Gun 2 | . . 1 1 Ballistic Cannon . | . . . . Launcher 2 | . . 1 1 Special Weapon . | . . . . Impact Weapon . | . . . . Slashing Weapon . | . . . . Piercing Weapon . | . . . . Special Melee Weapon . | . . . . Unidentified Prototypes 1 | . . . 1 Parts Lost 5 | . . 1 4 Power 1 | . . . 1 Propulsion 3 | . . . 3 Utility . | . . . . Weapon 1 | . . 1 . Highest Loss Streak 3 | . . 1 3 To Critical Strikes . | . . . . Average Backups 5 | 5 2 7 7 Power 1 | 1 1 . 1 Propulsion 1 | 3 . 2 1 Utility 2 | . . 3 4 Weapon . | 1 1 . . Tool/Special . | . . . . Unused Backups 16 | . 4 7 5 Power 1 | . . 1 . Propulsion 6 | . 4 1 1 Utility 6 | . . 2 4 Weapon 3 | . . 3 . Tool/Special . | . . . . Average Slot Usage (%) 96 | . 95 98 91 Engine 17 | . 14 22 12 Treads 5 | . . 6 8 Leg 9 | . 28 1 . Wheel 10 | . . 13 16 Device 1 | . . . 8 Storage 20 | . 23 21 9 Processor 7 | . . 10 9 Protection 1 | . . . 8 Energy Gun 4 | . 14 1 . Ballistic Gun 12 | . 14 12 8 Launcher 5 | . . 6 9 Peak Build Rating 27 | 6 7 18 27 Average Rating 13 | 6 6 13 23 On Entrance 9 | 6 6 7 18 Avg Prop Armor Cover (%) 8 | . . 10 7 Naked Turns . | . . . . Heaviest Build 28 | 13 15 22 28 Greatest Support 24 | 20 20 24 24 Greatest Overweight (x) 7 | . . 7 7 Average Overweight (x) . | . . . . Largest Inventory Capacity 8 | 8 8 8 8 Average Capacity 8 | 8 8 8 8 Most Carried 8 | 5 6 8 8 Average Carried 5 | 3 2 7 7 Final Capacity 8 | 8 8 8 8 Final Carried 8 | 2 4 8 8 Class Distribution -------------------- 100% | Mutant Dominant Class ---------------- Mutant | -10/Materials Mutant | -9/Materials Mutant | -8/Materials Resources | -11 -10 -9 -8 ----------- Run | Yrd Mat Mat Mat Matter Collected 964 | 200 166 432 166 Remotely . | . . . . Salvage Created 1218 | . 174 652 392 Parts 64 | . 11 38 15 Haulers Intercepted 2 | . . . 2 Recyclers Shooed . | . . . . Parts Field Recycled . | . . . . Retrieved Matter . | . . . . Parts Self-Destructed . | . . . . Prevented . | . . . . Parts Restored . | . . . . Kills | -11 -10 -9 -8 ------- Run | Yrd Mat Mat Mat Combat Hostiles Destroyed 31 | . 4 14 13 Guns 20 | . 4 12 4 AOE 11 | . . 2 9 Classes Destroyed 7 | . 1 3 3 Builder 1 | . . . 1 Hauler 2 | . . . 2 Watcher 2 | . . 1 1 Swarmer 4 | . . . 4 Grunt 21 | . 4 9 8 Brawler 1 | . . 1 . Sentry 5 | . . 4 1 Best Kill Streak 11 | . 3 5 11 Combat Bots Only 6 | . 3 5 6 Max Kills in Single Turn 3 | . 1 2 3 Gunslinging 1 | . . 1 . Exploded 2 | . . 1 2 Melee . | . . . . Uniques/NPCs Destroyed . | . . . . Combat | -11 -10 -9 -8 -------- Run | Yrd Mat Mat Mat Hostile Shots Fired 180 | . 34 64 82 Missed 51 | . 13 20 18 Hits 129 | . 21 44 64 Projectile 129 | . 21 44 64 Critical Strikes 4 | . . 1 3 Damage Taken 1625 | . 236 555 834 Core 273 | . 57 94 122 Absorbed by Shields . | . . . . Core Remaining (%) 84 | 100 77 76 . Volleys Fired 129 | . 19 54 56 Largest 2 | . 2 2 2 Hottest 61 | . 60 43 61 Shots Fired 181 | . 38 78 65 Gun 161 | . 38 76 47 Cannon . | . . . . Launcher 20 | . . 2 18 Special . | . . . . Kinetic 142 | . 19 76 47 Thermal 19 | . 19 . . Explosive 20 | . . 2 18 Electromagnetic . | . . . . Robot Hit Streak 12 | . 6 12 7 Robot Miss Streak 4 | . 4 3 2 Penetration Max . | . . . . Secondary Targets 2 | . . 2 . Max Gunslinging Chain 1 | . . 1 . Shots Hit Robots 122 | . 22 54 46 Core Hits 63 | . 9 26 28 Critical Kills . | . . . . Critical Parts Destroyed 1 | . . . 1 Critical Strikes 1 | . . . 1 Destroy 1 | . . . 1 Melee Attacks . | . . . . Impact . | . . . . Slashing . | . . . . Piercing . | . . . . Sneak Attacks . | . . . . Combat Hostiles . | . . . . Follow-up Attacks . | . . . . Damage Inflicted 2888 | . 271 901 1716 Guns 1584 | . 271 745 568 Cannons . | . . . . Explosions 1304 | . . 156 1148 Melee . | . . . . Ramming . | . . . . Kinetic 1473 | . 160 745 568 Thermal 111 | . 111 . . Explosive 1226 | . . 156 1070 Electromagnetic 78 | . . . 78 Impact . | . . . . Slashing . | . . . . Piercing . | . . . . Highest Corruption . | . . . . Average Corruption . | . . . . Corruption Purged . | . . . . Corruption Blocked . | . . . . Overload Shots . | . . . . Overflow Damage 69 | . . . 69 Projectiles . | . . . . Explosions 69 | . . . 69 Melee . | . . . . Knockbacks . | . . . . Impact . | . . . . Kinetic . | . . . . Secondary . | . . . . Self-Inflicted Damage . | . . . . Shots . | . . . . Rammed . | . . . . Targets Rammed . | . . . . Kicked . | . . . . Crushed . | . . . . Highest Temperature 66 | . 66 39 64 Average Temperature 20 | . 36 9 21 Received Heat Transfer 735 | . 126 249 360 Siege Activations . | . . . . Martial Activations . | . . . . Shielding Activations . | . . . . Robots Disrupted . | . . . . Combat Hostiles . | . . . . Robots Corrupted . | . . . . Combat Hostiles . | . . . . Parts Fried . | . . . . Impact Corruptions . | . . . . Robots Melted . | . . . . Combat Hostiles . | . . . . Parts Melted . | . . . . Heat Transferred 250 | . 250 . . Parts Sabotaged . | . . . . Parts Stolen . | . . . . Parts Stripped . | . . . . Power Chain Reactions . | . . . . Alert | -11 -10 -9 -8 ------- Run | Yrd Mat Mat Mat Maximum Alert Level 1 | . . 1 1 Low Security (%) 93 | 100 100 97 75 Level 1 6 | . . 2 24 Level 2 . | . . . . Level 3 . | . . . . Level 4 . | . . . . Level 5 . | . . . . High Security . | . . . . Max Security . | . . . . Peak Influence 341 | . 62 213 341 Initial 12 | . . 12 11 Average 75 | . 8 106 102 Influence Increases 1004 | . 116 407 481 Destroy 0b10 Robot/C 620 | . 80 280 260 Destroy 0b10 Robot/NC 25 | . . 5 20 Destroy Leader 128 | . 20 62 46 Successful Hack 2 | . . 2 . Disable Machine 60 | . . 15 45 Destroy Structure 94 | . 1 13 80 Partial Spotted 15 | . 15 . . Lose Combat Pursuer 60 | . . 30 30 Influence Decreases 683 | . 86 410 187 Entered New Map 34 | . . 18 16 Time Decay 609 | . 86 382 141 Lost Part 40 | . . 10 30 Squads Dispatched 4 | . 2 . 2 Investigation 2 | . 1 . 1 Extermination . | . . . . Reinforcement 2 | . 1 . 1 Assault . | . . . . Garrison . | . . . . Intercept . | . . . . Searches Triggered . | . . . . Construction Impeded . | . . . . Haulers Reinforced . | . . . . Active Scanning Responses . | . . . . Cargo Convoy Interrupts . | . . . . Stealth | -11 -10 -9 -8 --------- Run | Yrd Mat Mat Mat Distress Signals 2 | . 1 . 1 Communications Jammed . | . . . . Distress Signals . | . . . . Times Spotted 44 | . 7 19 18 Peak Tracking Total 5 | . 3 5 5 Tactical Retreats 4 | . . 2 2 Traps | -11 -10 -9 -8 ------- Run | Yrd Mat Mat Mat Traps Triggered 1 | . . . 1 Indirectly . | . . . . Trap Hack Attempts . | . . . . Triggered . | . . . . Disarmed 6 | . 6 . . Reprogrammed . | . . . . Reused . | . . . . Traps Extracted . | . . . . Installed . | . . . . Triggered . | . . . . Machines | -11 -10 -9 -8 ---------- Run | Yrd Mat Mat Mat Machines Disabled 4 | . . 1 3 Max in Single Turn 2 | . . 1 2 Machines Repaired . | . . . . Machines Dismantled . | . . . . Machines Sabotaged . | . . . . Overloaded Fab Kills . | . . . . Hacking | -11 -10 -9 -8 --------- Run | Yrd Mat Mat Mat Machines Accessed 7 | . 3 3 1 Terminals 4 | . 2 2 . Fabricators . | . . . . Repair Stations . | . . . . Recycling Units 1 | . 1 . . Scanalyzers 2 | . . 1 1 Garrison Access . | . . . . Total Hacks 25 | . 12 11 2 Successful 17 | . 9 7 1 Failed 7 | . 3 4 . Catastrophic 1 | . 1 . . Database Lockouts 1 | . . . 1 Manual 1 | . 1 . . Terminals 14 | . 8 6 . Fabricators . | . . . . Repair Stations . | . . . . Recycling Units 4 | . 4 . . Scanalyzers 7 | . . 5 2 Garrison Access . | . . . . Terminal Hacks 7 | . 5 2 . Record 1 | . 1 . . Emergency Access Points 2 | . 1 1 . Locate Traps 1 | . 1 . . Disarm Traps 1 | . 1 . . Investigation Status 1 | . . 1 . Registered Components 1 | . 1 . . Fabricator Hacks . | . . . . Repair Station Hacks . | . . . . Recycling Unit Hacks 4 | . 4 . . Recycle Component 1 | . 1 . . Process 1 | . 1 . . Report Inventory 2 | . 2 . . Scanalyzer 6 | . . 5 1 Insert Component 2 | . . 2 . Analyze 1 | . . 1 . Retrieve Study 3 | . . 2 1 Garrison Access Hacks . | . . . . Unauthorized Hacks . | . . . . Terminals . | . . . . Fabricators . | . . . . Repair Stations . | . . . . Recycling Units . | . . . . Scanalyzers . | . . . . Garrison Access . | . . . . Data Cores Recovered . | . . . . Used . | . . . . Hacking Detections 7 | . 3 3 1 Full Trace Events 2 | . 1 1 . Feedback Events . | . . . . Feedback Blocked . | . . . . Robot Schematics Acquired . | . . . . Robots Built . | . . . . Authchips . | . . . . Time . | . . . . Total Robot Build Rating . | . . . . Part Schematics Acquired 1 | . . 1 . Parts Built . | . . . . Authchips . | . . . . Time . | . . . . Total Part Build Rating . | . . . . Part Studies Acquired 3 | . . 2 1 Parts Repaired . | . . . . Time . | . . . . Parts Recycled 1 | . 1 . . Recycled Matter 49 | . 49 . . Retrieved Matter . | . . . . Retrieved Components . | . . . . Parts Scanalyzed 1 | . . 1 . Part Schematics Acquired 1 | . . 1 . Parts Damaged . | . . . . Bothacking | -11 -10 -9 -8 ------------ Run | Yrd Mat Mat Mat Used RIF Installer . | . . . . Robots Hacked . | . . . . Non-combat . | . . . . Combat . | . . . . Robot Hacks Applied . | . . . . Relay Couplers Released . | . . . . Fabnet Peak Effective % . | . . . . Robots Rewired . | . . . . Allies Hacked . | . . . . Hacks Repelled . | . . . . Allies | -11 -10 -9 -8 -------- Run | Yrd Mat Mat Mat Total Allies . | . . . . Largest Group . | . . . . Highest-Rated Group . | . . . . Highest-Rated Ally . | . . . . Total Orders . | . . . . Ally Attacks . | . . . . Total Damage . | . . . . Kills . | . . . . Allies Corrupted . | . . . . Allies Melted . | . . . . Intel | -11 -10 -9 -8 ------- Run | Yrd Mat Mat Mat Active Infowar (turns) 367 | . . . 367 Sensors 367 | . . . 367 Robot Analysis Total . | . . . . Derelict Logs Recovered . | . . . . Drone Launches . | . . . . Drone Recoveries . | . . . . Exploration | -11 -10 -9 -8 ------------- Run | Yrd Mat Mat Mat Turns Passed 1998 | 3 613 983 399 Spaces Moved 769 | 1 171 342 255 Core 7 | . . 3 4 Treads 9 | . . 8 1 Legs 198 | 1 171 26 . Wheels 555 | . . 305 250 Hover . | . . . . Flight . | . . . . Fastest Speed 80 | 120 120 80 80 Average Speed 100 | 120 120 99 86 Slowest Speed 400 | 120 120 400 400 Overloaded Moves . | . . . . Propulsion Burnouts . | . . . . Robots Hopped . | . . . . Potential Cave-ins . | . . . . Cave-ins Triggered . | . . . . Exploration Rate (%) 23 | 2 25 39 28 Regions Visited 3 Branch Regions . Pre-discovered Areas . | . . . . Known Exits Taken 1 | . . 1 . Unknown Exits Taken 2 | 1 1 . . Scrap Searched . | . . . . Spaces Dug . | . . . . Terrain Destroyed 127 | . . 17 110 Melee . | . . . . Projectile . | . . . . AOE 127 | . . 17 110 Terrain Rammed . | . . . . Walls Destroyed . | . . . . Machines Disabled . | . . . . Actions | -11 -10 -9 -8 --------- Run | Yrd Mat Mat Mat Total 1846 | 4 540 924 378 Wait 845 | . 339 463 43 Move 766 | . 170 341 255 Hop . | . . . . Pick Up 32 | . 6 22 4 Fast Attach 10 | . . 7 3 Attach 15 | . 1 9 5 Detach 8 | . . 4 4 Swap 8 | . 3 2 3 Drop 33 | 4 2 22 5 Fire 129 | . 19 54 56 Melee . | . . . . Ram . | . . . . Kick . | . . . . Crush . | . . . . Escape Stasis . | . . . . Rewire . | . . . . Trap . | . . . . Miscellaneous . | . . . . Route ------- -11/Scrapyard -10/Materials (discovered 2 exits: *Mat / [*Min]) -9/Materials -8/Materials History --------- Turn | Location | Event 4 | -11/Scrapyard | Discovered new exit (range 0) 4 | -11/Scrapyard | Entered Materials 171 | -10/Materials | Discovered new exit (range 16) 317 | -10/Materials | Build established: Mutant 582 | -10/Materials | Discovered new exit (range 16) 617 | -10/Materials | Entered another Materials area 617 | -9/Materials | Evolved 2 slots: Power x1, Utility x1 1562 | -9/Materials | Discovered new exit (range 16) 1599 | -9/Materials | Identified exit to Materials 1600 | -9/Materials | Entered another Materials area 1600 | -8/Materials | Evolved 2 slots: Propulsion x1, Utility x1 1642 | -8/Materials | Central database locked down 1999 | -8/Materials | Self-destructed Last Messages --------------- 01945_ G-47 Trooper destroyed. 01948_ Drone sends a signal. 01951_ The unstable cave ceiling collapses. 01958_ Destroyed Lgt. Angular Momentum Engine. 01958_ G-50 Soldier destroyed. 01959_ Slug penetrates Wall. 01959_ Arm. Wheel+ destroyed. 01962_ The unstable cave ceiling collapses. 01968_ Slug penetrates Wall. 01972_ The unstable cave ceiling collapses. 01974_ Slug penetrates Wall. 01974_ Arm. Wheel+ destroyed. 01977_ The unstable cave ceiling collapses. 01977_ Y-45 Defender destroyed. 01980_ Slug penetrates Wall. 01983_ Imp. Treads+ destroyed. 01986_ The unstable cave ceiling collapses. 01986_ Slug penetrates Wall. 01997_ The unstable cave ceiling collapses. 01999_ Penetrated by Slug. Map ----- +----------------------------------------------------+ | #???????????????????? #?????????????????????? | | #???????????????????# #?????????????????????? | | #???????????????????# #?????????????????????? | | #???????????????????# #?????????????????????? | | #???????????????????# #?????????????????????? | | #???????????????????# #?????????????????????? | | ##################### ####+##+##????????????? | | ! ?????????? | | #????????????????? | | /// """ """ ######+#### #????????????????? | | // """ """ # """ #???? #????????????????? | | // """ """ # "T" #???? #????????????????? | | # [ +??? #????????????????? | | # ] #??? #????????????????? | | # [ #??? +????????????????? | | # #??? #????????????????? | | ###+####### ######## ???????? | | ????????? | | ############# r ??????????? | | #??????########+## "" #????#??????? | | !!! #??????# # " # ??????? | | !!! #??????# # "" ?????? | | !! #??????# "Y" + !![ ?????? | | #??????# """ #h % ![ ?????? | | #??????##### # #+## # ![ ?????? | | #### +?????????# !@ ?????? | | # #?????????# # # " # ??????? | | "" # #?????????# % """ #???? ??????? | | "" # #?????????# # ! """ ## ###???????????? | | "" #####?????????## ! ! "" #??#??X??????????? | | "" #??????????????# !! """ #????????????????? | | "" #??????????????##### #????????????????? | | #?????????????????## ! =#????????????????? | | #??????????????????###########????????????????? | | ####?????????????????????????????????????????????? | | ?????????????????????????????????????????????????? | | | | | | | | | | | | | | | | | | | | | | | | | | | | | +----------------------------------------------------+ Best States ------------- Heat Dissipation 31 Energy Generation 25 Energy Capacity 400 Matter Stores 400 Matter Capacity 400 Sight Range 16 Robot Scan Range 14 Terrain Scan Density 10 Armor Coverage 300 Evasion (%) 55 Recoil Reduction 2 Item Schematics ----------------- Med. Armor Plating | -9/Materials | Scanalyzed Robot Schematics ------------------ None Fabricated ------------ Nothing Repaired ---------- Nothing Studied --------- Imp. Treads | -9/Materials | Hacked Arm. Wheel | -9/Materials | Hacked Lgt. Deuterium Engine | -8/Materials | Hacked Alien Tech Used ----------------- None Achievements -------------- None Challenges ------------ None Game ------ Seed HeatCompanionClaymores Manual? 0 Play Time 00:25:44 Cumulative 16.2 hours Start 2026.08.12 @ 15:33:25 End 2026.08.12 @ 18:47:46 Sessions 1 Manual Loads 0 Difficulty Rogue Special Mode None Game No. 47 Rogue 40 Adventurer 7 Explorer 0 Win Type - Total 0 Types 0/0/0/0/0/0/0/0/0/0 Lore% 10 Gallery% 20 Achievement% 14 Wizard Run 0 Options --------- Layout 0 ASCII 0 Keyboard 0 Movement Mouse Keybinds 0 Fullscreen 1 Font 18/SmallcapsGlow Map View 38x25 Zoom Use 100% Tactical HUD 1 Map Filters NONE Filters NONE Steam 1 RUN: 77516617-e280-44ed-b28f-9f466954bc20